Cogmind - Beta 14 @@@ ROGUE MODE // 2025.05.01 @ 22:54:01 Player: Rzcen Result: Destroyed by G-34 Mercenary with Small Laser Performance ------------- Evolutions (0) 0 Regions Visited (4) 800 Robots Destroyed (7) 35 Value Destroyed (233) 233 Prototype IDs (23) 460 Alien Tech Used (0) 0 Bonus (300) 300 TOTAL SCORE: 1828 Bonus ------- Aligned with FarCom 300 Cogmind --------- Core Integrity 0/250 Matter 270/300 Energy 66/100 System Corruption 0% Temperature Cool (6) Movement Rolling (100) Location -9/Mines Parts ------- > --- POWER (1) -------- (None) > --- PROPULSION (2) --- Compact Wheel Compact Wheel > --- UTILITY (2) ------ Large Storage Unit Signal Interpreter > --- WEAPON (2) ------- Medium Laser Assault Rifle > --- INVENTORY (15) --- Nuclear Core Nuclear Core Nuclear Core Light Treads Small Storage Unit 0b10 Alert Chip Peak State ------------ > --- POWER ------------ (None) > --- PROPULSION ------- Light Treads Compact Wheel > --- UTILITY ---------- Large Storage Unit Signal Interpreter > --- WEAPON ----------- Medium Laser Assault Rifle > --- INVENTORY -------- Nuclear Core Nuclear Core Nuclear Core Compact Wheel Small Storage Unit 0b10 Alert Chip [Rating: 7] Favorites ----------- Power Light Ion Engine Engine Light Ion Engine Propulsion Light Treads Treads Light Treads Wheel Compact Wheel Utility Signal Interpreter Storage Large Storage Unit Processor Signal Interpreter Weapon Medium Laser Energy Gun Medium Laser Ballistic Gun Assault Rifle Build | -11 -10 -10 -10 -9 ------- Run | Yrd Mat Min Exi Min Slots Evolved . | . . . . . Power . | . . . . . Propulsion . | . . . . . Utility . | . . . . . Weapon . | . . . . . Parts Attached 14 | 10 1 1 . 2 Power 1 | 1 . . . . Engine 1 | 1 . . . . Core . | . . . . . Reactor . | . . . . . Propulsion 8 | 6 . . . 2 Treads 4 | 4 . . . . Leg . | . . . . . Wheel 4 | 2 . . . 2 Hover . | . . . . . Flight . | . . . . . Utility 3 | 1 1 1 . . Device . | . . . . . Storage 2 | 1 . 1 . . Processor 1 | . 1 . . . Hackware . | . . . . . Protection . | . . . . . Artifact . | . . . . . Weapon 2 | 2 . . . . Energy Gun 1 | 1 . . . . Energy Cannon . | . . . . . Ballistic Gun 1 | 1 . . . . Ballistic Cannon . | . . . . . Launcher . | . . . . . Special Weapon . | . . . . . Impact Weapon . | . . . . . Slashing Weapon . | . . . . . Piercing Weapon . | . . . . . Special Melee Weapon . | . . . . . Unidentified Prototypes . | . . . . . Parts Lost 2 | . 1 1 . . Power 1 | . 1 . . . Propulsion 1 | . . 1 . . Utility . | . . . . . Weapon . | . . . . . Highest Loss Streak 1 | . 1 1 . . To Critical Strikes . | . . . . . Average Slot Usage (%) 73 | . 81 71 71 . Engine 2 | . 8 . . . Treads 17 | . 28 14 14 . Storage 14 | . 14 14 14 . Processor 10 | . 1 14 14 . Energy Gun 14 | . 14 14 14 . Ballistic Gun 14 | . 14 14 14 . Peak Build Rating 7 | 6 6 6 6 7 Average Rating 5 | 3 5 5 5 7 On Entrance 4 | . 6 6 5 6 Naked Turns . | . . . . . Heaviest Build 24 | 12 12 24 24 24 Greatest Support 40 | 40 40 20 20 32 Greatest Overweight (x) 1 | . . 1 1 . Average Overweight (x) . | . . . 1 . Largest Inventory Capacity 15 | 8 8 15 15 15 Average Capacity 12 | 6 8 11 15 15 Most Carried 7 | 5 3 3 7 6 Average Carried 4 | 2 2 2 6 6 Final Capacity 15 | 8 8 15 15 15 Final Carried 7 | 2 2 3 7 6 Class Distribution -------------------- 100% | Mutant Dominant Class ---------------- Mutant | -10/Materials Mutant | -10/Mines Mutant | -10/Exiles Mutant | -9/Mines Resources | -11 -10 -10 -10 -9 ----------- Run | Yrd Mat Min Exi Min Matter Collected 378 | 252 97 29 . . Remotely . | . . . . . Salvage Created 259 | . 165 94 . . Parts 10 | . 9 1 . . Haulers Intercepted . | . . . . . Recyclers Shooed . | . . . . . Parts Field Recycled . | . . . . . Retrieved Matter . | . . . . . Parts Self-Destructed . | . . . . . Prevented . | . . . . . Kills | -11 -10 -10 -10 -9 ------- Run | Yrd Mat Min Exi Min Combat Hostiles Destroyed 6 | . 4 2 . . Guns 6 | . 4 2 . . Classes Destroyed 2 | . 2 . . . Watcher 1 | . 1 . . . Grunt 6 | . 4 2 . . Best Kill Streak 4 | . 4 2 . . Combat Bots Only 4 | . 4 2 . . Max Kills in Single Turn 1 | . 1 1 . . Gunslinging . | . . . . . Exploded . | . . . . . Melee . | . . . . . Uniques/NPCs Destroyed . | . . . . . Combat | -11 -10 -10 -10 -9 -------- Run | Yrd Mat Min Exi Min Hostile Shots Fired 58 | . 28 18 . 12 Missed 11 | . 8 3 . . Damage Taken 646 | . 222 301 . 123 Core 260 | . 64 120 . 76 Absorbed by Shields . | . . . . . Core Remaining (%) 100 | 100 . . . . Volleys Fired 26 | . 18 8 . . Largest 2 | . 2 2 . . Hottest 70 | . 70 70 . . Shots Fired 52 | . 36 16 . . Gun 52 | . 36 16 . . Cannon . | . . . . . Launcher . | . . . . . Special . | . . . . . Kinetic 26 | . 18 8 . . Thermal 26 | . 18 8 . . Explosive . | . . . . . Electromagnetic . | . . . . . Robot Hit Streak 7 | . 7 6 . . Robot Miss Streak 2 | . 2 1 . . Penetration Max . | . . . . . Secondary Targets 2 | . 1 1 . . Max Gunslinging Chain 1 | . 1 1 . . Shots Hit Robots 38 | . 26 12 . . Core Hits 14 | . 9 5 . . Critical Kills . | . . . . . Critical Parts Destroyed . | . . . . . Critical Strikes 4 | . 3 1 . . Burn 4 | . 3 1 . . Melee Attacks . | . . . . . Impact . | . . . . . Slashing . | . . . . . Piercing . | . . . . . Sneak Attacks . | . . . . . Combat Hostiles . | . . . . . Follow-up Attacks . | . . . . . Damage Inflicted 488 | . 337 151 . . Guns 488 | . 337 151 . . Cannons . | . . . . . Explosions . | . . . . . Melee . | . . . . . Ramming . | . . . . . Kinetic 239 | . 163 76 . . Thermal 249 | . 174 75 . . Explosive . | . . . . . Electromagnetic . | . . . . . Impact . | . . . . . Slashing . | . . . . . Piercing . | . . . . . Highest Corruption . | . . . . . Average Corruption . | . . . . . Corruption Purged . | . . . . . Corruption Blocked . | . . . . . Overload Shots . | . . . . . Overflow Damage . | . . . . . Projectiles . | . . . . . Explosions . | . . . . . Melee . | . . . . . Knockbacks . | . . . . . Impact . | . . . . . Kinetic . | . . . . . Secondary . | . . . . . Self-Inflicted Damage . | . . . . . Shots . | . . . . . Rammed . | . . . . . Targets Rammed . | . . . . . Kicked . | . . . . . Crushed . | . . . . . Highest Temperature 138 | . 138 56 . . Average Temperature 62 | . 76 31 . . Received Heat Transfer 264 | . 120 96 . 48 Siege Activations . | . . . . . Robots Corrupted . | . . . . . Combat Hostiles . | . . . . . Parts Fried . | . . . . . Impact Corruptions . | . . . . . Robots Melted . | . . . . . Combat Hostiles . | . . . . . Parts Melted 3 | . 1 2 . . Heat Transferred 1036 | . 740 296 . . Parts Sabotaged . | . . . . . Parts Stolen . | . . . . . Parts Stripped . | . . . . . Power Chain Reactions . | . . . . . Alert | -11 -10 -10 -10 -9 ------- Run | Yrd Mat Min Exi Min Peak Influence 132 | . 132 91 . . Initial 51 | . . 51 . . Average 62 | . 53 88 . . Maximum Alert Level . | . . . . . Low Security (%) 100 | 100 100 100 . 100 Level 1 . | . . . . . Level 2 . | . . . . . Level 3 . | . . . . . Level 4 . | . . . . . Level 5 . | . . . . . High Security . | . . . . . Max Security . | . . . . . Squads Dispatched 1 | . 1 . . . Investigation . | . . . . . Extermination . | . . . . . Reinforcement 1 | . 1 . . . Assault . | . . . . . Garrison . | . . . . . Intercept . | . . . . . Searches Triggered . | . . . . . Construction Impeded . | . . . . . Haulers Reinforced . | . . . . . Active Scanning Responses . | . . . . . Cargo Convoy Interrupts . | . . . . . Stealth | -11 -10 -10 -10 -9 --------- Run | Yrd Mat Min Exi Min Distress Signals . | . . . . . Communications Jammed . | . . . . . Distress Signals . | . . . . . Times Spotted 20 | . 9 4 . 7 Peak Tracking Total 7 | . 2 2 . 7 Tactical Retreats . | . . . . . Traps | -11 -10 -10 -10 -9 ------- Run | Yrd Mat Min Exi Min Traps Triggered . | . . . . . Indirectly . | . . . . . Trap Hack Attempts . | . . . . . Triggered . | . . . . . Disarmed . | . . . . . Reprogrammed . | . . . . . Reused . | . . . . . Traps Extracted . | . . . . . Installed . | . . . . . Triggered . | . . . . . Machines | -11 -10 -10 -10 -9 ---------- Run | Yrd Mat Min Exi Min Machines Disabled . | . . . . . Max in Single Turn . | . . . . . Machines Repaired . | . . . . . Machines Dismantled . | . . . . . Machines Sabotaged . | . . . . . Overloaded Fab Kills . | . . . . . Hacking | -11 -10 -10 -10 -9 --------- Run | Yrd Mat Min Exi Min Machines Accessed 4 | . . . 4 . Terminals . | . . . . . Fabricators . | . . . . . Repair Stations . | . . . . . Recycling Units . | . . . . . Scanalyzers . | . . . . . Garrison Access . | . . . . . Total Hacks 8 | . . . 8 . Successful 8 | . . . 8 . Failed . | . . . . . Catastrophic . | . . . . . Database Lockouts . | . . . . . Manual 1 | . . . 1 . Terminals . | . . . . . Fabricators . | . . . . . Repair Stations . | . . . . . Recycling Units . | . . . . . Scanalyzers . | . . . . . Garrison Access . | . . . . . Terminal Hacks 8 | . . . 8 . Record 7 | . . . 7 . Derelict Proto ID Bank 1 | . . . 1 . Fabricator Hacks . | . . . . . Repair Station Hacks . | . . . . . Recycling Unit Hacks . | . . . . . Scanalyzer . | . . . . . Garrison Access Hacks . | . . . . . Unauthorized Hacks . | . . . . . Terminals . | . . . . . Fabricators . | . . . . . Repair Stations . | . . . . . Recycling Units . | . . . . . Scanalyzers . | . . . . . Garrison Access . | . . . . . Data Cores Recovered . | . . . . . Used . | . . . . . Hacking Detections . | . . . . . Full Trace Events . | . . . . . Feedback Events . | . . . . . Feedback Blocked . | . . . . . Robot Schematics Acquired . | . . . . . Robots Built . | . . . . . Authchips . | . . . . . Time . | . . . . . Total Robot Build Rating . | . . . . . Part Schematics Acquired . | . . . . . Parts Built . | . . . . . Authchips . | . . . . . Time . | . . . . . Total Part Build Rating . | . . . . . Parts Repaired . | . . . . . Time . | . . . . . Parts Recycled . | . . . . . Recycled Matter . | . . . . . Retrieved Matter . | . . . . . Retrieved Components . | . . . . . Parts Scanalyzed . | . . . . . Part Schematics Acquired . | . . . . . Parts Damaged . | . . . . . Bothacking | -11 -10 -10 -10 -9 ------------ Run | Yrd Mat Min Exi Min Used RIF Installer . | . . . . . Robots Hacked . | . . . . . Non-combat . | . . . . . Combat . | . . . . . Robot Hacks Applied . | . . . . . Relay Couplers Released . | . . . . . Fabnet Peak Effective % . | . . . . . Robots Rewired . | . . . . . Allies Hacked . | . . . . . Hacks Repelled . | . . . . . Allies | -11 -10 -10 -10 -9 -------- Run | Yrd Mat Min Exi Min Total Allies . | . . . . . Largest Group . | . . . . . Highest-Rated Group . | . . . . . Highest-Rated Ally . | . . . . . Total Orders . | . . . . . Ally Attacks . | . . . . . Total Damage . | . . . . . Kills . | . . . . . Allies Corrupted . | . . . . . Allies Melted . | . . . . . Intel | -11 -10 -10 -10 -9 ------- Run | Yrd Mat Min Exi Min Robot Analysis Total . | . . . . . Derelict Logs Recovered . | . . . . . Drone Launches . | . . . . . Drone Recoveries . | . . . . . Exploration | -11 -10 -10 -10 -9 ------------- Run | Yrd Mat Min Exi Min Turns Passed 1555 | 68 364 296 823 4 Spaces Moved 687 | 43 162 138 342 2 Core 9 | 9 . . . . Treads 661 | 19 162 138 342 . Legs . | . . . . . Wheels 17 | 15 . . . 2 Hover . | . . . . . Flight . | . . . . . Fastest Speed 50 | 50 160 160 240 100 Average Speed 204 | 116 160 196 240 100 Slowest Speed 240 | 160 160 240 240 100 Overloaded Moves . | . . . . . Propulsion Burnouts . | . . . . . Robots Hopped . | . . . . . Cave-ins Triggered . | . . . . . Exploration Rate (%) 24 | 3 33 17 63 4 Regions Visited 4 Branch Regions 3 Pre-discovered Areas . | . . . . . Known Exits Taken 3 | . 1 1 1 . Unknown Exits Taken 1 | 1 . . . . Scrap Searched . | . . . . . Spaces Dug . | . . . . . Terrain Destroyed . | . . . . . Melee . | . . . . . Projectile . | . . . . . AOE . | . . . . . Terrain Rammed . | . . . . . Walls Destroyed . | . . . . . Machines Disabled . | . . . . . Actions | -11 -10 -10 -10 -9 --------- Run | Yrd Mat Min Exi Min Total 790 | 63 231 147 345 4 Wait 48 | . 48 . . . Move 683 | 42 161 137 341 2 Hop . | . . . . . Pick Up 14 | 7 2 1 4 . Fast Attach 1 | 1 . . . . Attach 11 | 9 1 . . 1 Detach 4 | 4 . . . . Swap 2 | . . 1 . 1 Drop 1 | . 1 . . . Fire 26 | . 18 8 . . Melee . | . . . . . Ram . | . . . . . Kick . | . . . . . Crush . | . . . . . Escape Stasis . | . . . . . Rewire . | . . . . . Trap . | . . . . . Miscellaneous . | . . . . . Route ------- -11/Scrapyard -10/Materials -10/Mines -10/Exiles (discovered 2 exits: *Min x2) -9/Mines History --------- Turn | Location | Event 5 | -11/Scrapyard | Discovered new exit (range 15) 69 | -11/Scrapyard | Entered Materials 317 | -10/Materials | Build established: Mutant 362 | -10/Materials | Discovered new exit (range 12) 409 | -10/Materials | Identified exit to Mines 433 | -10/Materials | Entered Mines 483 | -10/Mines | Deemed a non-threat by the Exiles lab entrance 483 | -10/Mines | Discovered new exit (range 5) 488 | -10/Mines | Identified exit to Exiles 617 | -10/Mines | Assembled infested the area 622 | -10/Mines | Assisted by a Guerilla fighting off Assembled 729 | -10/Mines | Core integrity fell below 50% 729 | -10/Mines | Entered Exiles 804 | -10/Exiles | Discovered new exit (range 14) 828 | -10/Exiles | Identified exit to Mines 879 | -10/Exiles | Met 8R-AWN 915 | -10/Exiles | Met EX-HEX 984 | -10/Exiles | Met EX-BIN 1013 | -10/Exiles | Aligned with FarCom system 1016 | -10/Exiles | Given EX-Vault access code 1071 | -10/Exiles | Opened EX-Vault 1210 | -10/Exiles | Warned to stay clear of 0b10 Research branches 1320 | -10/Exiles | Found 0b10 Alert Chip 1434 | -10/Exiles | Met EX-DEC 1533 | -10/Exiles | Discovered exit to Mines (range 10) 1552 | -10/Exiles | Left Exiles lab with 0b10 Alert Chip 1552 | -10/Exiles | Entered Mines 1554 | -9/Mines | Core integrity fell below 20% 1556 | -9/Mines | Destroyed by G-34 Mercenary with Small Laser Last Messages --------------- >>Record "DEC-099/Infernogeddon Engine" [REDACTED] ** HEX: No. >>Record "DEC-091/Autonomous Weapon System" DEC: What every combatant wants: A weapon that just knows what it's supposed to do and does it automatically. You can go about your business while this thing fills your enemies with holes! ** HEX: Design of the AWS/Autocannon began as a gift for our rescuer. We've been preoccupied by more pressing projects in the meantime so we only delivered the initial schematics, covering the weapon part. Funny enough they thought that was the entirety of what we'd put together and loved it nonetheless. Go figure. The enhanced complete version mostly works now, and DEC has since been experimenting with other models as well. 01320_ Acquired 0b10 Alert Chip. EX-DEC: Ah I see we have a visitor. One wrong move in here and I'll invert your atomic chain! 01436_ EX-DEC: "Oops, I hope HEX didn't hear that..." 01533_ EXIT=FOUND: MINES LOCATION=MINES GOAL=ESCAPE 01552_ Receiving FarCom transmissions... Map ----- +----------------------------------------------------+ | ?????????????????????????????????????????? | | ?????????????????????????????????????????? | | ?????????????????????????????????????????? | | ?????????????????????????????????????????? | | ?????????????????????????????????????????? | | ?????????????????????????????????????????? | | ?????????????????????????????????????????? | | ?????????????????????????????????????????? | | ?????????????????????????????????????????? | | ????????????????????gg???????????????????? | | ?????????????????????????????????????????? | | ?????????????????????????????????????????? | | ?????????????????????????????????????????? | | ?????????????????????????????????????????? | | ?????????????????????????????????????????? | | ?????????????????????????????????????????? | | ????????????????????????????????ss???????? | | ?????????????????????????????????????????? | | ???????????????????????????????s?s???????? | | ?????????????????????????????????????????? | | ????????????????????????####?????????????? | | ???????????????????????## ##????????????? | | ??????????????????????## #????????????? | | ?????????????????????## #????????????? | | ????????????????????## #?????????????? | | ????????????????????# @#??????????????? | | ????????????????????# ### """??????? | | ????????????????????# g s """??????? | | ????????????????????## gg ### s #????? | | ?????????????????????# ## #??????????????? | | ?????????????????????# ?# #??????????????? | | ?????????????????????#??# #??????????????? | | ????????????????????????# #?????s????????? | | ????????????????????????# #??????????????? | | ????????????????????????# #??????????????? | | ????????????????????????? ??????s????????? | | ????????????????????????? ???????????????? | | ????????????????????????? ???????????????? | | ?????????????????????????#???????????????? | | ?????????????????????????????????????????? | | ?????????????????????????????????????????? | | ?????????????????????????????????????????? | | ?????????????????????????????????????????? | | ?????????????????????????????????????????? | | ?????????????????????????????????????????? | | ?????????????????????????????????????????? | | ?????????????????????????????????????????? | | ?????????????????????????????????????????? | | ?????????????????????????????????????????? | | | +----------------------------------------------------+ Best States ------------- Heat Dissipation 25 Energy Generation 10 Energy Capacity 125 Matter Stores 300 Matter Capacity 300 Sight Range 16 Terrain Scan Density 10 Evasion (%) 50 Recoil Reduction 2 Item Schematics ----------------- None Robot Schematics ------------------ None Fabricated ------------ Nothing Alien Tech Used ----------------- None Achievements -------------- None Challenges ------------ None Game ------ Seed ReactiveHardcellOptics Manual? 0 Play Time 00:14:08 Cumulative 38.0 hours Start 2025.05.01 @ 22:24:41 End 2025.05.01 @ 22:54:01 Sessions 1 Manual Loads 0 Difficulty Rogue Special Mode None Game No. 36 Rogue 32 Adventurer 4 Explorer 0 Win Type - Total 0 Types 0/0/0/0/0/0/0/0/0 Lore% 11 Gallery% 24 Achievement% 23 Wizard Run 0 Options --------- Layout 0 ASCII 0 Keyboard 0 Movement Mouse Keybinds 0 Fullscreen 1 Font 24/Smallcaps Map View 76x50 Zoom Use 0% Tactical HUD 1 Map Filters NONE Filters NONE Steam 1 RUN: f3bc3c28-b924-41c7-a950-17167f984f73